Cogmind - Beta 17 @@@ ROGUE MODE // 2026.08.10 @ 16:40:51 Player: Marc Result: Destroyed by 7I-U3O(R) with Subdweller Beam Cannon Performance ------------- Evolutions (0) 0 Regions Visited (2) 400 Robots Destroyed (13) 65 Value Destroyed (352) 352 Prototype IDs (2) 40 Alien Tech Used (0) 0 Bonus (0) 0 TOTAL SCORE: 857 Bonus ------- None Cogmind --------- Core Integrity 0/250 Matter 288/300 Energy 100/100 System Corruption 0% Temperature Cool (9) Movement Rolling (110) Location -10/Subcaves Parts ------- > --- POWER (1) -------- (None) > --- PROPULSION (2) --- Subdweller Monowheel Subdweller Monowheel > --- UTILITY (2) ------ Structural Scanner Seismic Detector > --- WEAPON (2) ------- Barrage Gun Datajack > --- INVENTORY (5) ---- Small Storage Unit Grenade Launcher Peak State ------------ > --- POWER ------------ Light Ion Engine > --- PROPULSION ------- Subdweller Monowheel Subdweller Monowheel > --- UTILITY ---------- Structural Scanner Seismic Detector > --- WEAPON ----------- Barrage Gun Datajack > --- INVENTORY -------- Small Storage Unit Grenade Launcher [Rating: 11] Favorites ----------- Power Light Ion Engine Engine Light Ion Engine Propulsion Subdweller Monowheel Treads Light Treads Leg Aluminum Leg Wheel Subdweller Monowheel Flight Unit Flight Unit Utility Structural Scanner Device Structural Scanner Storage Small Storage Unit Processor Targeting Computer Weapon Datajack Energy Gun Small Laser Energy Cannon Beam Cannon Ballistic Gun Barrage Gun Launcher Grenade Launcher Special Melee Weapon Datajack Build | -11 -10 -10 ------- Run | Yrd Mat Sub Slots Evolved . | . . . Power . | . . . Propulsion . | . . . Utility . | . . . Weapon . | . . . Parts Attached 15 | 3 9 3 Power . | . . . Engine . | . . . Core . | . . . Reactor . | . . . Propulsion 6 | 2 2 2 Treads 1 | 1 . . Leg . | . . . Wheel 3 | 1 . 2 Hover . | . . . Flight 2 | . 2 . Utility 3 | . 3 . Device 2 | . 2 . Storage . | . . . Processor 1 | . 1 . Hackware . | . . . Protection . | . . . Artifact . | . . . Weapon 6 | 1 4 1 Energy Gun . | . . . Energy Cannon 1 | . 1 . Ballistic Gun 2 | 1 . 1 Ballistic Cannon . | . . . Launcher 2 | . 2 . Special Weapon . | . . . Impact Weapon . | . . . Slashing Weapon . | . . . Piercing Weapon . | . . . Special Melee Weapon 1 | . 1 . Unidentified Prototypes . | . . . Parts Lost 2 | . . 2 Power 1 | . . 1 Propulsion . | . . . Utility . | . . . Weapon 1 | . . 1 Highest Loss Streak 1 | . . 1 To Critical Strikes . | . . . Average Backups 3 | 4 3 2 Power . | 1 . . Propulsion 1 | 2 1 . Utility . | . . 1 Weapon 1 | 1 1 1 Tool/Special . | . . . Unused Backups 14 | 9 2 3 Power 3 | 2 . 1 Propulsion 8 | 4 2 2 Utility 1 | 1 . . Weapon 2 | 2 . . Tool/Special . | . . . Average Slot Usage (%) 88 | . 79 95 Engine 13 | . 14 13 Treads 2 | . 6 . Wheel 13 | . 6 20 Flight 9 | . 13 6 Device 17 | . 4 28 Storage 3 | . 7 . Processor 2 | . 5 . Ballistic Gun 10 | . 12 9 Launcher 5 | . 7 3 Special Melee Weapon 7 | . 1 12 Peak Build Rating 11 | 6 7 11 Average Rating 7 | 5 5 9 On Entrance 6 | 6 6 6 Avg Prop Armor Cover (%) 12 | 14 11 . Naked Turns . | . . . Heaviest Build 13 | 11 13 9 Greatest Support 40 | 10 10 40 Greatest Overweight (x) 3 | 1 3 1 Average Overweight (x) . | . . . Largest Inventory Capacity 8 | 8 8 5 Average Capacity 5 | 8 6 5 Most Carried 8 | 8 6 5 Average Carried 3 | 4 3 2 Final Capacity 8 | 8 5 5 Final Carried 5 | 2 5 2 Class Distribution -------------------- 93% | Mutant 6% | Scavenger-Mutant Dominant Class ---------------- Mutant | -10/Materials Mutant | -10/Subcaves Resources | -11 -10 -10 ----------- Run | Yrd Mat Sub Matter Collected 645 | 219 124 302 Remotely . | . . . Salvage Created 306 | . 172 134 Parts 29 | . 22 7 Haulers Intercepted . | . . . Recyclers Shooed . | . . . Parts Field Recycled . | . . . Retrieved Matter . | . . . Parts Self-Destructed 3 | . . 3 Prevented . | . . . Parts Restored . | . . . Kills | -11 -10 -10 ------- Run | Yrd Mat Sub Combat Hostiles Destroyed 9 | . 5 4 Guns 7 | . 5 2 AOE 2 | . . 2 Classes Destroyed 7 | . 5 2 Builder 1 | . 1 . Operator 2 | . 2 . Watcher 1 | . 1 . Swarmer 3 | . 3 . Grunt 5 | . 2 3 Artisan 1 | . . 1 Subdweller 1 | . . 1 Best Kill Streak 5 | . 5 2 Combat Bots Only 5 | . 5 2 Max Kills in Single Turn 2 | . 2 1 Gunslinging . | . . . Exploded 1 | . . 1 Melee . | . . . Uniques/NPCs Destroyed . | . . . Combat | -11 -10 -10 -------- Run | Yrd Mat Sub Hostile Shots Fired 39 | . 21 18 Missed 15 | . 7 8 Hits 24 | . 14 10 Projectile 24 | . 14 10 Damage Taken 610 | . 223 387 Core 275 | . 83 192 Absorbed by Shields . | . . . Core Remaining (%) 100 | 100 . . Volleys Fired 41 | . 19 22 Largest 2 | . 2 1 Hottest 40 | . 40 30 Shots Fired 57 | . 35 22 Gun 45 | . 32 13 Cannon . | . . . Launcher 12 | . 3 9 Special . | . . . Kinetic 45 | . 32 13 Thermal . | . . . Explosive 12 | . 3 9 Electromagnetic . | . . . Robot Hit Streak 26 | . 18 26 Robot Miss Streak 2 | . 2 . Penetration Max . | . . . Secondary Targets . | . . . Shots Hit Robots 53 | . 28 25 Core Hits 20 | . 11 9 Critical Kills . | . . . Critical Parts Destroyed 1 | . 1 . Critical Strikes 1 | . 1 . Destroy 1 | . 1 . Melee Attacks 10 | . 3 7 Impact . | . . . Slashing . | . . . Piercing . | . . . Sneak Attacks 8 | . 3 5 Combat Hostiles . | . . . Follow-up Attacks . | . . . Damage Inflicted 956 | . 395 561 Guns 492 | . 264 228 Cannons . | . . . Explosions 464 | . 131 333 Melee . | . . . Ramming . | . . . Kinetic 492 | . 264 228 Thermal . | . . . Explosive 464 | . 131 333 Electromagnetic . | . . . Impact . | . . . Slashing . | . . . Piercing . | . . . Highest Corruption . | . . . Average Corruption . | . . . Corruption Purged . | . . . Corruption Blocked . | . . . Overload Shots . | . . . Overflow Damage 48 | . 24 24 Projectiles . | . . . Explosions 48 | . 24 24 Melee . | . . . Knockbacks . | . . . Impact . | . . . Kinetic . | . . . Secondary . | . . . Self-Inflicted Damage 95 | . 29 66 Shots 4 | . 1 3 Rammed . | . . . Targets Rammed . | . . . Kicked . | . . . Crushed . | . . . Highest Temperature 18 | . 18 . Average Temperature 9 | . 9 . Received Heat Transfer 165 | . 96 69 Siege Activations . | . . . Martial Activations . | . . . Shielding Activations . | . . . Robots Disrupted . | . . . Combat Hostiles . | . . . Robots Corrupted . | . . . Combat Hostiles . | . . . Parts Fried . | . . . Impact Corruptions . | . . . Robots Melted . | . . . Combat Hostiles . | . . . Parts Melted . | . . . Heat Transferred . | . . . Parts Sabotaged . | . . . Parts Stolen . | . . . Parts Stripped . | . . . Power Chain Reactions . | . . . Alert | -11 -10 -10 ------- Run | Yrd Mat Sub Maximum Alert Level . | . . . Low Security (%) 100 | 100 100 . Level 1 . | . . . Level 2 . | . . . Level 3 . | . . . Level 4 . | . . . Level 5 . | . . . High Security . | . . . Max Security . | . . . Peak Influence 110 | . 110 . Initial . | . . . Average 36 | . 42 . Influence Increases 278 | . 198 80 Destroy 0b10 Robot/C 160 | . 100 60 Destroy 0b10 Robot/NC 20 | . 20 . Destroy Leader 42 | . 22 20 Successful Hack 4 | . 4 . Disable Machine 30 | . 30 . Destroy Structure 22 | . 22 . Influence Decreases 278 | . 160 118 Entered New Map 19 | . . 19 Time Decay 169 | . 80 89 Lost Part 10 | . . 10 Purge Threat 80 | . 80 . Squads Dispatched 1 | . 1 . Investigation . | . . . Extermination . | . . . Reinforcement 1 | . 1 . Assault . | . . . Garrison . | . . . Intercept . | . . . Searches Triggered . | . . . Construction Impeded . | . . . Haulers Reinforced . | . . . Active Scanning Responses . | . . . Cargo Convoy Interrupts . | . . . Stealth | -11 -10 -10 --------- Run | Yrd Mat Sub Distress Signals . | . . . Communications Jammed . | . . . Distress Signals . | . . . Times Spotted 13 | . 8 5 Peak Tracking Total 2 | . 2 2 Tactical Retreats . | . . . Traps | -11 -10 -10 ------- Run | Yrd Mat Sub Traps Triggered 2 | . . 2 Indirectly . | . . . Trap Hack Attempts . | . . . Triggered . | . . . Disarmed . | . . . Reprogrammed . | . . . Reused . | . . . Traps Extracted . | . . . Installed 1 | . . 1 Triggered . | . . . Machines | -11 -10 -10 ---------- Run | Yrd Mat Sub Machines Disabled 2 | . 2 . Max in Single Turn 1 | . 1 . Machines Repaired . | . . . Machines Dismantled . | . . . Machines Sabotaged . | . . . Overloaded Fab Kills . | . . . Hacking | -11 -10 -10 --------- Run | Yrd Mat Sub Machines Accessed 3 | . 3 . Terminals 3 | . 3 . Fabricators . | . . . Repair Stations . | . . . Recycling Units . | . . . Scanalyzers . | . . . Garrison Access . | . . . Total Hacks 9 | . 9 . Successful 7 | . 7 . Failed 2 | . 2 . Catastrophic . | . . . Database Lockouts . | . . . Manual . | . . . Terminals 9 | . 9 . Fabricators . | . . . Repair Stations . | . . . Recycling Units . | . . . Scanalyzers . | . . . Garrison Access . | . . . Terminal Hacks 7 | . 7 . Prototype ID Bank 1 | . 1 . Emergency Access Points 1 | . 1 . Alert Level 1 | . 1 . Unreport Threat 1 | . 1 . Locate Traps 2 | . 2 . Dispatch Records 1 | . 1 . Fabricator Hacks . | . . . Repair Station Hacks . | . . . Recycling Unit Hacks . | . . . Scanalyzer . | . . . Garrison Access Hacks . | . . . Unauthorized Hacks . | . . . Terminals . | . . . Fabricators . | . . . Repair Stations . | . . . Recycling Units . | . . . Scanalyzers . | . . . Garrison Access . | . . . Data Cores Recovered 1 | . 1 . Used . | . . . Hacking Detections 1 | . 1 . Full Trace Events . | . . . Feedback Events . | . . . Feedback Blocked . | . . . Robot Schematics Acquired . | . . . Robots Built . | . . . Authchips . | . . . Time . | . . . Total Robot Build Rating . | . . . Part Schematics Acquired . | . . . Parts Built . | . . . Authchips . | . . . Time . | . . . Total Part Build Rating . | . . . Part Studies Acquired . | . . . Parts Repaired . | . . . Time . | . . . Parts Recycled . | . . . Recycled Matter . | . . . Retrieved Matter . | . . . Retrieved Components . | . . . Parts Scanalyzed . | . . . Part Schematics Acquired . | . . . Parts Damaged . | . . . Bothacking | -11 -10 -10 ------------ Run | Yrd Mat Sub Used RIF Installer . | . . . Robots Hacked 2 | . 1 1 Non-combat 2 | . 1 1 Combat . | . . . Robot Hacks Applied 2 | . 1 1 parse_system 1 | . . 1 no_distress 1 | . 1 . Relay Couplers Released . | . . . Fabnet Peak Effective % . | . . . Robots Rewired . | . . . Allies Hacked . | . . . Hacks Repelled . | . . . Allies | -11 -10 -10 -------- Run | Yrd Mat Sub Total Allies . | . . . Largest Group . | . . . Highest-Rated Group . | . . . Highest-Rated Ally . | . . . Total Orders . | . . . Ally Attacks . | . . . Total Damage . | . . . Kills . | . . . Allies Corrupted . | . . . Allies Melted . | . . . Intel | -11 -10 -10 ------- Run | Yrd Mat Sub Active Infowar (turns) 340 | . 62 278 Structural 337 | . 59 278 Seismic 303 | . 25 278 Robot Analysis Total . | . . . Derelict Logs Recovered 1 | . . 1 Drone Launches . | . . . Drone Recoveries . | . . . Exploration | -11 -10 -10 ------------- Run | Yrd Mat Sub Turns Passed 561 | 41 242 278 Spaces Moved 517 | 35 254 228 Core 12 | . 7 5 Treads . | . . . Legs . | . . . Wheels 239 | 35 46 158 Hover . | . . . Flight 266 | . 201 65 Fastest Speed 37 | 80 37 37 Average Speed 71 | 80 51 90 Slowest Speed 200 | 95 200 117 Overloaded Moves . | . . . Propulsion Burnouts . | . . . Robots Hopped . | . . . Potential Cave-ins . | . . . Cave-ins Triggered . | . . . Exploration Rate (%) 21 | 3 37 24 Regions Visited 2 Branch Regions 1 Pre-discovered Areas 1 | . . 1 Known Exits Taken . | . . . Unknown Exits Taken 2 | 1 1 . Scrap Searched 4 | . . 4 Spaces Dug . | . . . Terrain Destroyed 51 | . 20 31 Melee . | . . . Projectile . | . . . AOE 51 | . 20 31 Terrain Rammed . | . . . Walls Destroyed . | . . . Machines Disabled . | . . . Actions | -11 -10 -10 --------- Run | Yrd Mat Sub Total 668 | 51 337 280 Wait 28 | 7 21 . Move 515 | 34 253 228 Hop . | . . . Pick Up 14 | . 9 5 Fast Attach 4 | . 4 . Attach 19 | 3 9 7 Detach 17 | 3 10 4 Swap . | . . . Drop 19 | 4 9 6 Fire 41 | . 19 22 Melee 10 | . 3 7 Ram . | . . . Kick . | . . . Crush . | . . . Escape Stasis . | . . . Rewire . | . . . Trap 1 | . . 1 Miscellaneous . | . . . Route ------- -11/Scrapyard -10/Materials (discovered 3 exits: [*Mat] / [*Min] / [*Sub]) -10/Subcaves History --------- Turn | Location | Event 8 | -11/Scrapyard | Discovered new exit (range 3) 42 | -11/Scrapyard | Entered Materials 245 | -10/Materials | Discovered new exit (range 10) 265 | -10/Materials | Discovered new exit (range 16) 267 | -10/Materials | Discovered new exit (range 16) 284 | -10/Materials | Entered Subcaves 340 | -10/Subcaves | Core integrity fell below 50% 364 | -10/Subcaves | Disturbed a concealed Subdweller 513 | -10/Subcaves | Learned location of Storage (-8) 541 | -10/Subcaves | Core integrity fell below 20% 562 | -10/Subcaves | Destroyed by 7I-U3O(R) with Subdweller Beam Cannon Last Messages --------------- 00373_ Acquired Piercing Trap. 00375_ Dropped Piercing Trap. 00375_ Installed Piercing Trap. 00381_ The unstable cave ceiling collapses. 00418_ Acquired 21 matter. 00425_ Destroyed Particle Gun. 00431_ G-47 Trooper destroyed. 00434_ Subatomizers dissect the Sub. Monowheel. 00434_ Acquired 45 matter. 00441_ Acquired 41 matter. 00446_ Lgt. Nuclear Core fries itself beyond repair. 00446_ Acquired 50 matter. 00448_ Subatomizers dissect the Sub. Monowheel. 00507_ Triggered Shrapnel Trap. 00507_ An expanding cloud of shrapnel blasts out in all directions. 00513_ Acquired derelict log, extracted data. World map updated: -8/Storage. 00540_ Triggered Shrapnel Trap. 00540_ An expanding cloud of shrapnel blasts out in all directions. 00540_ Lgt. Ion Engine destroyed. Map ----- +----------------------------------------------------+ | ?????????????????????????????????????????????????? | | ?????????????????????????????????????????????????? | | ?????????????????????????????????????????????????? | | ?????????????????????????????????????????????????? | | ?????????????????????????????????????????????????? | | ?????????????????????????????????????????????????? | | ?????????????????????????????????????????????????? | | ?????????????????????????????????????????????????? | | ?????????????????????????????????????????????????? | | ?????????????????????????????????????????????????? | | ?????????????????????????????????????????????????? | | ?????????????????????????????????????????????????? | | ?????????????????????????????????????????????????? | | ?????????????????????????????????????????????????? | | ?????????????????????????????????????????????????? | | ???????????????????????????? ###?????????????????? | | ???????????????????????????" ####"" #????????????? | | ???????????????????????????"""#### ###???????????? | | ???????????????????????????"""""## ###???????????? | | ??????????????????????????#"""" #####????????? | | ?????????????????????????### ""# ## ## ????????? | | #?????????######????????#### # ????????? | | #######???############??### """ ###???????????? | | #######???## ########### " " ##???????????? | | #### ##???## ## ###### R## $ ##???????????? | | ##???#### ^ ####@ ####???###???????????? | | ##????### ^ ^"### ###??????????????????? | | ##????### " ##???????????????????? | | ###????## #####???????????????????? | | ###????### "" ; # #####???????????????????? | | ####??########" #######?????????????????????? | | ############# ## ##?????????????????????? | | ###### ##### ##?????????????????????? | | #### # ##?????????????????????? | | #### # ^ "# ###?????????????????????? | | #### ### """# ##?????????????????????? | | # ### #### ##### ##?????????????????????? | | # ####### ##### ####???????????????????? | | # ###### ## #####???????????????????? | | # ###??### ### ##???????????????????? | | ########??### # # ##???????????????????? | | ########???## ##???????????????????? | | ###????????### ###???????????????????? | | ###????????### #### ###???????????????????? | | ####???????####### ## ##???????????????????? | | ################ ###??????????????????? | | # ########### ##### ###??????????????????? | | ## # ### # # % ##??????????????????? | | # # ##??????????????????? | | # # ###??????????????????? | +----------------------------------------------------+ Best States ------------- Heat Dissipation 25 Energy Generation 10 Energy Capacity 125 Matter Stores 300 Matter Capacity 300 Sight Range 16 Terrain Scan Density 10 Evasion (%) 62 Targeting Accuracy 5 Recoil Reduction 1 Item Schematics ----------------- None Robot Schematics ------------------ None Fabricated ------------ Nothing Repaired ---------- Nothing Studied --------- None Alien Tech Used ----------------- None Achievements -------------- Art Critic Challenges ------------ None Game ------ Seed DispersionSplicePod Manual? 0 Play Time 00:16:23 Cumulative 12.9 hours Start 2026.08.10 @ 16:19:51 End 2026.08.10 @ 16:40:51 Sessions 1 Manual Loads 0 Difficulty Rogue Special Mode None Game No. 35 Rogue 28 Adventurer 7 Explorer 0 Win Type - Total 0 Types 0/0/0/0/0/0/0/0/0/0 Lore% 10 Gallery% 18 Achievement% 13 Wizard Run 0 Options --------- Layout 0 ASCII 0 Keyboard 0 Movement Mouse Keybinds 0 Fullscreen 1 Font 18/SmallcapsGlow Map View 38x25 Zoom Use 91% Tactical HUD 1 Map Filters NONE Filters NONE Steam 1 RUN: 2d4be8c8-c4f6-4dc7-9d4d-6e823ad92d2c